bitfinex/quotes_SOLUSD_20250814
["timestamp","ask_amount","ask_price","bid_price","bid_amount"]
[1755179259350,10.0,194.84,194.8,15.10621557]
[1755179259660,215.1,195.04,194.8,15.10621557]
[1755179259661,10.0,194.86,194.82,15.10621557]
[1755179259860,10.0,194.86,194.84,15.10621557]
[1755179260060,10.0,194.89,194.84,229.20621556]
[1755179260362,10.0,194.89,194.85,0.51321529]
[1755179260562,10.0,194.89,194.87,15.10621557]
[1755179260869,10.72,194.88,194.87,79.69999999]
[1755179261097,10.0,194.86,194.85,79.69999999]
[1755179261267,5.13294322,194.82,194.81,79.69999999]
[1755179261588,10.0,194.83,194.82,15.10621557]
[1755179261879,10.0,194.82,194.81,138.94621556]
[1755179262061,10.0,194.82,194.81,123.83999999]
[1755179262375,10.0,194.8,194.79,0.03]
[1755179262579,10.72,194.8,194.79,44.17]
[1755179262986,10.72,194.8,194.77,0.03]
[1755179263295,5.1324171,194.84,194.78,44.14]
[1755179263296,10.72,194.79,194.78,44.14]
[1755179263658,10.0,194.78,194.77,0.03]
[1755179263957,10.72,194.78,194.77,44.17]
[1755179264591,10.0,194.78,194.77,44.17]
[1755179264964,10.0,194.79,194.78,15.10621557]
[1755179265166,10.0,194.81,194.78,15.10621557]
[1755179265370,4.99739874,194.82,194.78,15.6196153]
[1755179265588,15.13271485,194.83,194.78,15.9996153]
[1755179265882,5.13188956,194.86,194.83,0.03]
[1755179266181,15.13188956,194.86,194.85,15.10621557]
[1755179266482,10.0,194.84,194.83,0.03]
[1755179266681,10.0,194.84,194.83,44.17]
[1755179266870,10.0,194.85,194.83,44.17]
[1755179267065,10.0,194.84,194.83,59.27621557]
[1755179267266,12.82723893,194.9,194.84,20.2383855]
[1755179267267,10.0,194.9,194.84,20.2383855]
[1755179267466,10.0,194.9,194.85,0.51321529]
[1755179267669,10.0,194.9,194.87,15.10621557]
[1755179267871,10.0,194.9,194.87,0.51316262]
[1755179268064,10.0,194.9,194.88,15.10621557]
[1755179268257,10.0,194.89,194.88,15.10621557]
[1755179268476,10.0,194.89,194.88,59.22621557]
[1755179268985,10.0,194.9,194.88,59.22621557]
[1755179269361,10.0,194.93,194.88,59.22621557]
[1755179269563,10.0,194.93,194.88,64.35748876]
[1755179270173,10.0,194.91,194.89,0.51310995]
[1755179270372,10.0,194.94,194.89,0.51310995]
[1755179270985,10.0,194.95,194.91,15.10621557]
[1755179271190,10.0,194.94,194.91,15.61927287]
[1755179271389,10.0,194.94,194.92,44.12]
[1755179271564,10.72,194.94,194.89,5.13106077]
[1755179271765,10.0,194.93,194.91,15.10621557]
[1755179271981,0.72,194.92,194.86,0.51318895]
[1755179272165,10.0,194.9,194.87,15.10621557]
[1755179272363,10.0,194.91,194.88,0.51313628]
[1755179273177,10.72,194.91,194.89,44.1]
[1755179273380,10.0,194.86,194.83,15.13621557]
[1755179273684,26.0,194.93,194.83,15.13621557]
[1755179273685,10.72,194.85,194.83,0.03]
[1755179273876,10.0,194.86,194.84,59.20621557]
[1755179274077,10.0,194.88,194.85,15.10621557]
[1755179274269,10.0,194.89,194.87,15.10621557]
[1755179274473,10.0,194.89,194.88,59.20621557]
[1755179274698,10.0,194.89,194.86,0.51318895]
[1755179274895,0.72,194.88,194.87,44.1]
[1755179275087,10.72,194.88,194.87,44.1]
[1755179275398,10.0,194.84,194.83,79.73]
[1755179275586,15.85241634,194.84,194.83,123.83]
[1755179275898,10.0,194.84,194.83,138.93621557]
[1755179276114,10.0,194.86,194.84,15.10621557]
[1755179276266,10.0,194.85,194.84,15.10621557]
[1755179276899,10.0,194.86,194.84,94.80621557]
[1755179277067,10.0,194.9,194.84,15.9994572]
[1755179277274,10.0,194.92,194.85,0.38]
[1755179277476,15.12963759,194.95,194.87,20.23780053]
[1755179277696,10.0,194.92,194.88,0.51313628]
[1755179277897,10.0,194.9,194.89,44.08]
[1755179278086,10.0,194.9,194.89,59.18621557]
[1755179278388,10.0,194.92,194.9,15.10621557]
[1755179278596,5.12956913,194.95,194.9,15.6192992]
[1755179278779,10.0,194.92,194.9,15.6192992]
[1755179278977,10.0,194.84,194.83,0.03]
[1755179279369,10.0,194.85,194.83,44.11]
[1755179279979,10.0,194.84,194.83,44.11]
[1755179280175,10.0,194.84,194.83,59.21621557]
[1755179280583,10.0,194.87,194.84,10.10621557]
[1755179280785,10.0,194.88,194.85,0.51321529]
[1755179281203,10.0,194.88,194.83,49.24261951]
[1755179281204,15.13088469,194.9,194.84,0.51324163]
[1755179281412,10.0,194.87,194.84,0.51324163]
[1755179281724,10.0,194.86,194.83,44.11]
[1755179282024,5.13138939,194.88,194.83,44.11]
[1755179282025,10.0,194.84,194.83,0.03]
[1755179282191,10.0,194.84,194.83,44.09]
[1755179282514,10.0,194.78,194.77,0.03]
[1755179282717,10.69,194.78,194.77,44.09]
[1755179282892,10.0,194.78,194.77,44.09]
[1755179283624,10.0,194.78,194.77,59.19621557]
[1755179283991,10.0,194.78,194.77,44.09]
[1755179284311,10.0,194.81,194.78,15.10621557]
[1755179284484,10.0,194.85,194.79,1.18337337]
[1755179284683,10.0,194.84,194.8,15.10621557]
[1755179284897,10.0,194.85,194.82,15.10621557]
[1755179285088,10.0,194.85,194.84,15.10621557]
[1755179285405,10.0,194.86,194.84,15.10621557]
[1755179285608,10.0,194.96,194.86,41.10621557]
[1755179285819,10.0,194.96,194.88,15.10621557]
[1755179286151,5.1664445,194.98,194.91,15.10621557]
[1755179286152,15.1664445,194.98,194.91,15.10621557]
[1755179286289,0.06,194.98,194.93,15.10621557]
[1755179286489,0.06,194.98,194.95,15.10621557]
[1755179286719,0.06,194.98,194.97,15.10621557]
[1755179287213,0.06,194.98,194.97,59.81621557]
[1755179287621,0.06,194.98,194.97,77.6446561]
[1755179287822,0.06,194.98,194.97,34.11755552]
[1755179287999,0.06,194.98,194.97,78.15755552]
[1755179288202,0.06,195.0,194.99,41.10621557]
[1755179288509,0.06,195.0,194.99,42.28906238]
[1755179288721,0.06,195.0,194.99,59.65906238]
[1755179288892,0.06,195.0,194.99,15.61906238]
[1755179289091,0.06,195.0,194.99,73.02850871]
[1755179289427,0.06,195.0,194.99,16.28906238]
[1755179289634,0.06,195.0,194.99,59.65906238]
[1755179289842,0.06,195.0,194.99,60.32906238]
[1755179290117,0.06,195.0,194.99,65.4575305]
[1755179290317,0.06,195.04,195.0,15.10621557]
[1755179290517,0.06,195.04,195.02,15.10621557]
[1755179290695,10.06,195.04,195.03,15.10621557]
[1755179290898,10.06,195.04,195.03,59.12621557]
[1755179291306,0.06,195.04,195.03,59.12621557]
[1755179291620,0.06,195.04,195.03,59.63895719]
[1755179291793,10.06,195.04,195.03,15.61895719]
[1755179291995,10.0,195.02,195.0,15.10621557]
[1755179292198,10.0,195.02,194.99,0.51284681]
[1755179292199,10.0,195.0,194.99,0.51284681]
[1755179292402,10.0,194.96,194.95,0.51295203]
[1755179292721,10.0,194.97,194.95,44.53295203]
[1755179292921,10.0,195.02,194.96,15.77621557]
[1755179293122,10.0,195.03,194.98,27.8056619]
[1755179293333,0.06,195.04,195.0,15.10621557]
[1755179293633,0.06,195.04,195.03,20.23363186]
[1755179293806,0.06,195.04,195.03,59.61895719]
[1755179293997,0.06,195.04,195.03,60.28895719]
[1755179294393,10.0,195.09,195.04,15.10621557]
[1755179294616,10.0,195.08,195.06,15.10621557]
[1755179294816,10.0,195.15,195.08,15.10621557]
[1755179295029,10.0,195.13,195.1,15.10621557]
[1755179295216,10.0,195.16,195.12,15.10621557]
[1755179295406,10.0,195.14,195.13,59.10621557]
[1755179295614,10.0,195.15,195.13,59.10621557]
[1755179295824,10.0,195.1,195.09,15.10621557]
[1755179296033,10.0,195.1,195.09,59.10621557]
[1755179296237,5.12406432,195.16,195.09,59.10621557]
[1755179296238,10.0,195.12,195.09,15.10621557]
[1755179296420,10.0,195.14,195.1,45.18255766]
[1755179296607,10.0,195.14,195.1,0.51255766]
[1755179296941,10.0,195.15,195.12,15.10621557]
[1755179297232,10.0,195.16,195.12,15.61872069]
[1755179297412,10.0,195.15,195.13,44.0]
[1755179297749,10.0,195.18,195.14,15.10621557]
[1755179297906,10.69,195.18,195.14,15.10621557]
[1755179298208,5.13416392,195.23,195.14,15.10621557]
[1755179298209,10.0,195.15,195.14,15.10621557]
[1755179298408,10.0,195.15,195.14,59.10621557]
[1755179298831,10.0,195.14,195.13,48.90621557]
[1755179299035,10.0,195.14,195.13,92.88621557]
[1755179299236,10.0,195.15,195.14,15.10621557]
[1755179299613,10.0,195.15,195.14,20.23074155]
[1755179299838,10.0,195.15,195.14,64.21074155]
[1755179300138,10.0,195.18,195.14,64.21074155]
[1755179300437,0.69,195.17,195.14,64.21074155]
[1755179300627,0.69,195.17,195.14,64.72319414]
[1755179300823,10.0,195.21,195.17,15.10621557]
[1755179301143,10.0,195.19,195.18,59.08621557]
[1755179301429,10.69,195.19,195.18,15.10621557]
[1755179301631,10.69,195.19,195.18,43.98]
[1755179302006,10.69,195.19,195.14,0.51245259]
[1755179302221,10.0,195.15,195.14,0.51245259]
[1755179302440,10.0,195.14,195.13,33.8]
[1755179302620,10.69,195.14,195.13,77.78]
[1755179302823,15.81452598,195.14,195.13,33.08]
[1755179303231,15.81452598,195.14,195.13,77.04]
[1755179303655,15.81452598,195.14,195.02,10.0]
[1755179303656,10.0,195.03,195.02,43.8]
[1755179303819,10.0,195.07,195.03,15.10621557]
[1755179304025,10.0,195.09,195.05,15.10621557]
[1755179304232,10.0,195.08,195.07,15.10621557]
[1755179304441,10.0,195.07,195.03,15.10621557]
[1755179304640,10.0,195.06,195.03,15.10621557]
[1755179304816,10.0,195.03,195.02,34.31276792]
[1755179305025,10.69,195.03,195.02,33.8]
[1755179305247,10.69,195.03,195.02,77.76]
[1755179305418,10.0,195.04,195.02,77.76]
[1755179305622,10.0,195.03,195.02,92.86621557]
[1755179305846,10.0,195.04,195.03,15.10621557]
[1755179306056,10.0,195.03,195.02,77.76]
[1755179306342,10.69,195.03,195.02,33.8]
[1755179306545,10.0,195.03,195.02,77.76]
[1755179306851,10.0,195.03,195.02,92.86621557]
[1755179307024,15.81741629,195.03,195.02,33.8]
[1755179307218,10.0,194.92,194.91,0.5130573]
[1755179307435,10.0,194.93,194.91,43.96]
[1755179307635,7.79504026,195.01,194.91,43.96]
[1755179307636,10.0,194.95,194.92,1.18303098]
[1755179307927,10.0,195.01,194.94,27.8056619]
[1755179308250,10.0,195.01,194.96,15.10621557]
[1755179308456,10.0,195.02,194.98,15.10621557]
[1755179308621,10.0,195.02,194.97,1.18289942]
[1755179308622,10.0,195.02,195.0,15.10621557]
[1755179308833,10.0,194.97,194.96,15.64914129]
[1755179309057,10.0,194.97,194.96,0.54292572]
[1755179309266,15.8189942,194.97,194.96,0.03]
[1755179309554,15.8189942,194.97,194.96,43.99]
[1755179309724,15.8189942,194.97,194.96,1e-08]
[1755179309936,10.0,194.83,194.82,0.2]
[1755179310343,10.0,194.83,194.82,44.16]
[1755179310737,20.97302057,194.83,194.82,0.2]
[1755179311045,10.0,194.78,194.77,0.03]
[1755179311350,10.0,194.77,194.76,0.03]
[1755179311544,10.66,194.77,194.76,0.03]
[1755179312159,10.66,194.77,194.75,0.2]
[1755179312160,20.0,194.76,194.75,0.2]
[1755179312465,10.0,194.66,194.65,0.2]
[1755179312763,10.0,194.66,194.65,44.18]
[1755179313463,10.66,194.66,194.65,44.2]
[1755179313758,10.0,194.66,194.65,44.2]
[1755179313964,10.0,194.66,194.65,59.30621557]
[1755179314367,10.0,194.67,194.66,5.13716223]
[1755179314546,10.0,194.67,194.66,6.35087845]
[1755179314864,10.0,194.67,194.66,20.75709402]
[1755179315062,10.0,194.67,194.65,44.2]
[1755179315246,10.0,194.66,194.65,0.2]
[1755179315444,10.0,194.66,194.65,44.24]
[1755179315660,10.66,194.66,194.65,44.24]
[1755179315859,10.0,194.66,194.65,44.24]
[1755179316044,10.0,194.66,194.65,59.34621557]
[1755179316250,10.0,194.66,194.65,60.04621557]
[1755179316451,0.66,194.74,194.65,60.04621557]
[1755179316452,10.0,194.67,194.66,5.13716223]
[1755179316757,10.0,194.67,194.66,20.9433778]
[1755179316952,10.0,194.68,194.67,15.10621557]
[1755179317155,10.0,194.8,194.67,28.5056619]
[1755179317339,10.0,194.76,194.71,15.10621557]
[1755179317538,10.0,194.75,194.72,1.21355792]
[1755179317738,10.0,194.73,194.72,15.10621557]
[1755179317940,10.0,194.74,194.73,15.10621557]
[1755179318161,10.0,194.74,194.73,59.36621557]
[1755179318374,10.0,194.74,194.73,60.06621557]
[1755179318541,10.0,194.8,194.73,60.06621557]
[1755179318745,10.0,194.87,194.79,15.10621557]
[1755179318942,10.0,194.83,194.82,15.10621557]
[1755179319160,10.0,194.83,194.82,44.34]
[1755179319365,10.0,194.78,194.77,15.10621557]
[1755179319554,10.0,194.78,194.74,33.84]
[1755179319555,10.0,194.76,194.74,54.08120439]
[1755179319753,0.51308363,194.91,194.75,60.65969438]
[1755179319754,10.0,194.81,194.75,60.65969438]
[1755179320061,10.0,194.85,194.77,15.10621557]
[1755179320249,10.0,194.85,194.79,15.10621557]
[1755179320454,10.0,194.9,194.81,15.10621557]
[1755179320673,10.0,194.84,194.83,15.10621557]
[1755179320972,10.51308363,194.98,194.83,65.31863457]
[1755179320973,0.66,194.94,194.83,65.31863457]
[1755179321143,0.66,194.94,194.84,0.51324163]
[1755179321342,0.66,194.98,194.85,15.10621557]
[1755179321576,8.60809865,194.98,194.86,0.51318895]
[1755179321750,26.66,194.97,194.86,0.51318895]
[1755179321945,0.66,194.96,194.87,44.36]
[1755179322257,26.0,194.93,194.83,5.132419]
[1755179322463,36.0,194.91,194.74,33.84]
[1755179322665,26.0,194.87,194.75,44.36]
[1755179322967,26.0,194.87,194.77,5.13426092]
[1755179323276,26.0,194.86,194.77,5.13426092]
[1755179323444,26.0,194.86,194.78,44.38]
[1755179323651,0.66,194.85,194.78,44.38]
[1755179323867,0.66,194.85,194.79,15.10621557]
[1755179324065,0.66,194.85,194.78,44.38]
[1755179324285,0.66,194.85,194.79,44.36]
[1755179324456,5.13110785,194.89,194.79,44.36]
[1755179324457,26.0,194.88,194.8,15.10621557]
[1755179325073,0.66,194.87,194.81,44.34]
[1755179325285,0.66,194.87,194.82,44.34]
[1755179325464,0.66,194.87,194.75,5.64811029]
[1755179325465,0.51308363,194.86,194.83,44.34]
[1755179325650,0.51308363,194.86,194.74,33.84]
[1755179325651,26.0,194.84,194.74,33.84]
[1755179325851,26.0,194.8,194.75,44.32]
[1755179326149,27.17308363,194.79,194.76,44.32]
[1755179326387,26.66,194.78,194.76,44.32]
[1755179326556,0.66,194.77,194.76,44.32]
[1755179326756,1.17308363,194.77,194.76,44.32]
[1755179327051,5.79426092,194.77,194.76,44.32]
[1755179327280,26.0,194.74,194.65,0.2]
[1755179327574,26.0,194.74,194.66,44.28]
[1755179327575,26.66,194.74,194.66,44.28]
[1755179327777,0.66,194.73,194.66,44.28]
[1755179328102,26.66,194.73,194.67,0.03]
[1755179328248,18.48299685,194.77,194.67,15.13621557]
[1755179328249,5.79426092,194.77,194.67,15.13621557]
[1755179328564,5.79426092,194.77,194.68,44.26]
[1755179328565,26.0,194.74,194.68,44.26]
[1755179328966,5.13525207,194.74,194.69,44.26]
[1755179329155,10.22543513,194.74,194.67,0.03]
[1755179329360,10.22543513,194.74,194.68,44.24]
[1755179329361,1.17308363,194.73,194.68,44.24]
[1755179329560,0.66,194.72,194.68,44.24]
[1755179329756,26.51308363,194.73,194.68,44.24]
[1755179329757,26.0,194.73,194.68,44.24]
[1755179329972,0.66,194.71,194.68,44.24]
[1755179330170,0.66,194.7,194.69,44.32]
[1755179330378,0.66,194.7,194.67,0.03]
[1755179330565,0.71,194.7,194.69,44.38]
[1755179330763,5.80018306,194.74,194.69,44.38]
[1755179331072,0.71,194.81,194.7,16.31982625]
[1755179331480,0.71,194.85,194.72,15.10621557]
[1755179331649,26.0,194.84,194.72,15.10621557]
[1755179331854,26.0,194.81,194.72,15.10621557]
[1755179332273,0.71,194.8,194.7,15.61982625]
[1755179332786,26.71,194.8,194.71,44.4]
[1755179332967,26.0,194.76,194.67,15.13621557]
[1755179333376,26.0,194.76,194.68,44.4]
[1755179333563,26.0,194.76,194.69,15.80621557]
[1755179333882,26.0,194.76,194.69,15.10621557]
[1755179334460,26.0,194.76,194.71,15.10621557]
[1755179334681,26.0,194.78,194.73,15.10621557]
[1755179334885,26.0,194.78,194.75,5.13478818]
[1755179335085,5.84243685,194.84,194.75,5.13478818]
[1755179335392,0.71,194.87,194.76,15.10621557]
[1755179335687,5.84186372,194.87,194.76,15.10621557]
[1755179335993,26.0,194.84,194.77,1.21342609]
[1755179336567,5.84186372,194.87,194.79,15.10621557]
[1755179336788,0.06,194.89,194.81,15.10621557]
[1755179336993,0.06,194.89,194.82,0.7]
[1755179337175,0.06,194.89,194.82,1.21329432]
[1755179337796,0.06,194.89,194.83,15.10621557]
[1755179338086,0.06,194.89,194.83,15.61948354]
[1755179338668,0.77,194.89,194.81,5.13314554]
[1755179338870,0.06,194.89,194.83,15.10621557]
[1755179339170,26.0,194.88,194.83,15.80621557]
[1755179339372,0.06,194.89,194.85,15.10621557]
[1755179339569,0.06,194.89,194.87,15.10621557]
[1755179339766,0.06,194.89,194.88,59.52621557]
[1755179339989,0.06,194.89,194.88,15.10621557]
[1755179340392,0.06,194.89,194.87,80.4]
[1755179340393,0.06,194.89,194.87,79.7]
[1755179340700,0.06,194.89,194.88,44.38]
[1755179341384,0.06,194.89,194.88,44.34]
[1755179342102,0.06,194.89,194.88,60.11621557]
[1755179342597,0.76,194.89,194.88,44.34]
[1755179342790,0.06,194.89,194.88,44.34]
[1755179343392,0.06,194.89,194.88,59.44621557]
[1755179343721,0.06,194.89,194.88,65.24757845]
[1755179344006,0.06,194.89,194.85,0.51321529]
[1755179344184,0.06,194.89,194.87,15.10621557]
[1755179344569,0.06,194.89,194.86,15.10621557]
[1755179344876,0.06,194.89,194.87,44.3]
[1755179345585,0.06,194.89,194.88,44.3]
[1755179345770,0.06,194.89,194.88,60.07621557]
[1755179346803,0.06,194.89,194.88,65.20757845]
[1755179347309,0.06,194.89,194.88,65.14757845]
[1755179347818,0.06,194.89,194.88,21.42071473]
[1755179347983,0.06,194.89,194.88,65.64071473]
[1755179348593,0.06,194.89,194.88,21.42071473]
[1755179348917,0.06,194.89,194.88,65.64071473]
[1755179349077,0.06,194.89,194.88,21.42071473]
[1755179349279,0.06,194.89,194.88,65.60071473]
[1755179349921,0.06,194.89,194.88,0.51313628]
[1755179350217,0.76,194.89,194.82,0.51329432]
[1755179350379,0.06,194.89,194.84,15.10621557]
[1755179350690,0.06,194.89,194.88,15.10621557]
[1755179350892,0.06,194.89,194.88,59.69935185]
[1755179351522,0.06,194.89,194.88,44.08]
[1755179351523,0.76,194.89,194.88,44.08]
[1755179351681,0.06,194.89,194.88,44.08]
[1755179352105,0.76,194.89,194.88,44.08]
[1755179352307,0.06,194.89,194.88,59.18621557]
[1755179353035,0.06,194.89,194.88,59.69935185]
[1755179353182,0.06,194.89,194.88,65.50071473]
[1755179353801,0.06,194.89,194.88,59.69935185]
[1755179354007,0.06,194.89,194.88,65.50071473]
[1755179356328,0.06,194.89,194.88,20.75071473]
[1755179356629,0.06,194.89,194.88,64.79071473]
[1755179356832,0.06,194.89,194.88,65.46071473]
[1755179357132,0.06,194.91,194.89,15.10621557]
[1755179357319,0.06,194.93,194.91,15.10621557]
[1755179357515,0.06,194.93,194.92,60.58924655]
[1755179358015,0.06,194.93,194.92,15.10621557]
[1755179358218,0.06,194.93,194.92,64.51652544]
[1755179358422,0.06,194.93,194.92,59.38621557]
[1755179358604,0.06,194.93,194.92,64.51652544]
[1755179359529,0.06,194.93,194.92,65.69955642]
[1755179360321,0.06,194.93,194.92,59.38621557]
[1755179360520,0.06,194.93,194.87,0.51316262]
[1755179360817,0.76,194.93,194.89,15.10621557]
[1755179361027,0.76,194.93,194.87,0.51316262]
[1755179361028,0.7,194.92,194.86,15.10621557]
[1755179361231,0.7,194.92,194.84,0.54324163]
[1755179361232,0.7,194.92,194.87,44.32]
[1755179361419,0.06,194.93,194.88,15.10621557]
[1755179361731,0.06,194.93,194.9,15.10621557]
[1755179361939,0.06,194.93,194.92,15.10621557]
[1755179362112,1e-08,194.93,194.92,20.90652544]
[1755179362310,1e-08,194.93,194.92,101.11955642]
[1755179362512,1e-08,194.93,194.92,144.90652544]
[1755179362935,1e-08,194.93,194.92,157.60597177]
[1755179363142,1e-08,194.93,194.92,144.90652544]
[1755179363327,1e-08,194.93,194.92,157.60597177]
[1755179363523,1e-08,194.93,194.92,99.93652544]
[1755179363842,1e-08,194.93,194.92,144.19652544]
[1755179364440,1e-08,194.93,194.92,59.36621557]
[1755179365235,1e-08,194.93,194.92,65.16652544]
[1755179366040,1e-08,194.93,194.92,64.39652544]
[1755179366345,1e-08,194.93,194.92,59.26621557]
[1755179366544,1e-08,194.93,194.9,15.10621557]
[1755179366718,0.70000001,194.93,194.91,44.2]
[1755179366917,1e-08,194.93,194.92,44.2]
[1755179367522,1e-08,194.93,194.92,59.30621557]
[1755179367920,0.70000001,194.93,194.87,5.64474085]
[1755179368243,0.70000001,194.93,194.88,59.74621557]
[1755179368545,1e-08,194.93,194.88,64.87752338]
[1755179368752,1e-08,194.93,194.89,0.51310995]
[1755179368920,1e-08,194.93,194.91,15.10621557]
[1755179369120,1e-08,194.93,194.92,44.6]
[1755179369521,0.70000001,194.93,194.87,15.10621557]
[1755179369715,0.70000001,194.93,194.84,5.16215653]
[1755179370047,26.0,194.92,194.84,0.03]
[1755179370246,0.70000001,194.93,194.86,15.10621557]
[1755179370449,1e-08,194.93,194.87,1.16316262]
[1755179370747,1e-08,194.93,194.89,15.10621557]
[1755179370946,1e-08,194.93,194.91,15.10621557]
[1755179371149,1e-08,194.93,194.92,60.49924655]
[1755179371452,1e-08,194.93,194.87,1.16316262]
[1755179371758,1e-08,194.93,194.84,0.03]
[1755179371759,1e-08,194.93,194.88,59.92621557]
[1755179371963,0.67,194.92,194.84,0.03]
[1755179372134,0.67,194.92,194.85,44.8]
[1755179372329,0.67,194.92,194.86,15.10621557]
[1755179372729,1e-08,194.93,194.88,15.10621557]
[1755179372929,1e-08,194.93,194.89,45.43]
[1755179373136,1e-08,194.93,194.9,15.75621557]
[1755179373541,1e-08,194.93,194.91,0.5130573]
[1755179373747,26.0,194.9,194.79,33.86]
[1755179373935,0.67,194.89,194.85,45.08]
[1755179374143,5.80120827,194.89,194.85,45.08]
[1755179374349,0.67,194.89,194.85,50.21200832]
[1755179374541,26.67,194.89,194.85,50.21200832]
[1755179374742,26.67,194.89,194.85,45.08]
[1755179374743,0.67,194.88,194.85,45.08]
[1755179374941,0.67,194.88,194.81,15.10621557]
[1755179375145,0.67,194.87,194.86,45.06]
[1755179375341,26.67,194.9,194.86,45.06]
[1755179375546,0.67,194.89,194.86,45.06]
[1755179375743,26.67000001,194.93,194.86,45.06]
[1755179375943,0.67,194.92,194.86,45.06]
[1755179376244,1.18308363,194.92,194.86,45.06]
[1755179376442,0.67,194.92,194.86,50.19187637]
[1755179376768,0.67,194.92,194.84,0.03]
[1755179376769,0.67,194.91,194.84,0.03]
[1755179376956,1.18308363,194.91,194.84,0.03]
[1755179377268,0.67,194.91,194.85,45.04]
[1755179377746,1.18308363,194.91,194.85,45.04]
[1755179377957,0.67,194.91,194.85,45.04]
[1755179378130,26.0,194.92,194.85,45.04]
[1755179378639,31.1303293,194.92,194.85,50.17210472]
[1755179378843,0.67000001,194.93,194.85,50.17210472]
[1755179379143,26.0,194.92,194.86,15.10621557]
[1755179379757,1e-08,194.93,194.86,15.10621557]
[1755179379960,5.80008921,194.93,194.86,15.10621557]
[1755179380148,5.13057308,194.91,194.87,44.98]
[1755179380342,0.67,194.9,194.87,44.98]
[1755179380546,0.51308363,194.92,194.87,44.98]
[1755179380752,0.51308363,194.92,194.84,0.03]
[1755179380753,26.67,194.89,194.84,0.03]
[1755179381068,0.67,194.88,194.85,44.94]
[1755179381443,0.67,194.87,194.85,44.94]
[1755179382365,31.1312219,194.89,194.85,44.94]
[1755179382366,26.0,194.89,194.85,44.94]
[1755179382946,0.67,194.88,194.85,44.94]
[1755179383147,26.0,194.89,194.85,44.94]
[1755179383346,31.13115196,194.89,194.85,44.94]
[1755179383562,26.0,194.89,194.85,44.94]
[1755179383869,0.67,194.92,194.86,20.8880594]
[1755179384168,1e-08,194.93,194.86,20.2380594]
[1755179384372,1e-08,194.93,194.88,15.10621557]
[1755179384543,1e-08,194.93,194.9,15.10621557]
[1755179384743,1e-08,194.93,194.9,15.75621557]
[1755179385449,1e-08,194.93,194.92,15.10621557]
[1755179386072,1e-08,194.93,194.91,5.78055444]
[1755179386382,1e-08,194.93,194.92,15.75621557]
[1755179388055,1e-08,194.93,194.92,20.88652544]
[1755179388569,1e-08,194.93,194.92,20.23652544]
[1755179388802,1e-08,194.93,194.88,5.7813179]
[1755179388958,1e-08,194.93,194.88,5.1313179]
[1755179389161,1e-08,194.93,194.89,44.64]
[1755179389349,1e-08,194.93,194.9,44.62]
[1755179389350,0.67,194.92,194.9,44.62]
[1755179389547,1e-08,194.93,194.91,44.62]
[1755179390059,26.67,194.92,194.91,44.62]
[1755179391976,5.80030987,194.92,194.91,44.62]
[1755179393865,5.80030987,194.92,194.84,0.03]
[1755179393866,26.0,194.89,194.84,0.03]
[1755179394069,5.13162621,194.87,194.85,44.34]
[1755179394365,1.18308363,194.86,194.85,44.34]